bitfinex-derivatives/quotes_ETHF0:USTF0_20240917
["timestamp","ask_amount","ask_price","bid_price","bid_amount"]
[1726598083816,0.42341,2361.2,2361.1,0.42341]
[1726598085516,0.42343,2361.1,2361.0,0.42343]
[1726598085721,0.42342,2361.2,2361.1,0.42341]
[1726598087117,4.0297,2361.3,2360.9,0.4016]
[1726598087315,0.42341,2361.2,2361.1,0.42341]
[1726598088212,4.4531,2361.3,2361.2,0.4234]
[1726598088916,4.0297,2361.3,2361.2,0.4234]
[1726598089118,5.0571,2361.3,2361.2,0.4234]
[1726598089321,5.48048,2361.3,2361.2,0.4234]
[1726598089523,8.68828,2361.3,2361.2,0.4234]
[1726598091427,0.4234,2361.2,2361.1,0.42341]
[1726598092628,0.42342,2361.2,2361.1,0.4234]
[1726598093821,4.45309,2361.3,2361.2,0.4234]
[1726598094230,4.0297,2361.3,2361.2,0.4234]
[1726598094527,4.45308,2361.3,2361.2,0.4234]
[1726598095026,1.24528,2361.3,2361.2,0.4234]
[1726598095215,0.8219,2361.3,2361.2,0.4234]
[1726598095421,0.42337,2361.4,2361.3,0.42338]
[1726598097123,1.22866,2361.5,2361.4,0.42337]
[1726598100930,2.28704,2361.5,2361.4,0.42337]
[1726598101137,1.48181,2361.4,2361.3,0.42337]
[1726598101625,1.87881,2361.4,2361.3,0.42337]
[1726598101827,6.11401,2361.4,2361.3,0.42337]
[1726598102834,5.05559,2361.4,2361.3,0.42337]
[1726598103034,0.4118,2361.5,2361.4,0.42337]
[1726598103332,3.2078,2361.9,2361.8,0.4233]
[1726598103528,4.42658,2361.9,2361.8,0.4233]
[1726598103723,4.0033,2361.9,2361.8,0.4233]
[1726598103923,4.02538,2361.9,2361.8,0.4233]
[1726598106242,5.67602649,2361.9,2361.8,0.4233]
[1726598106536,4.02538,2361.9,2361.8,0.4233]
[1726598106837,3.6021,2361.9,2361.8,0.4233]
[1726598107040,3.2078,2361.9,2361.8,0.4233]
[1726598107336,4.1162,2362.1,2362.0,0.42326]
[1726598107337,2.46524649,2362.1,2362.0,0.42326]
[1726598107638,2.88848649,2362.1,2362.0,0.42326]
[1726598108030,2.46524649,2362.1,2362.0,0.42326]
[1726598108628,2.88848649,2362.1,2362.0,0.42326]
[1726598109229,3.4463918,2362.1,2362.0,0.42326]
[1726598109837,0.42328,2361.9,2361.8,0.42328]
[1726598110030,2.07273076,2361.9,2361.8,0.42328]
[1726598110233,2.6318318,2361.9,2361.8,0.42328]
[1726598110633,0.42331,2361.8,2361.7,0.4233]
[1726598110939,2.6318618,2361.8,2361.7,0.42331]
[1726598111236,0.42331,2361.8,2361.7,0.42331]
[1726598111446,0.42334,2361.7,2361.6,0.42332]
[1726598111637,1.23464,2361.7,2361.6,0.42332]
[1726598112529,3.99038428,2361.7,2361.6,0.42332]
[1726598112731,1.23464,2361.7,2361.6,0.42332]
[1726598113639,0.3871,2361.7,2361.6,0.42333]
[1726598113849,0.81041,2361.7,2361.6,0.42333]
[1726598114033,4.01821,2361.7,2361.6,0.42333]
[1726598114230,3.31627744,2361.8,2361.7,0.42331]
[1726598114440,3.31627744,2361.9,2361.8,0.4233]
[1726598114739,3.2078,2362.0,2361.8,0.4233]
[1726598114740,2.75870917,2362.0,2361.9,0.42328]
[1726598115041,4.55697744,2362.3,2362.0,0.42326]
[1726598115042,2.75870917,2362.1,2362.0,0.42326]
[1726598117329,0.42323,2362.2,2362.1,0.42324]
[1726598118052,1.24032,2362.3,2362.2,0.42322]
[1726598118247,0.8171,2362.3,2361.9,1.0582]
[1726598118441,1.24032,2362.3,2362.2,0.42322]
[1726598118645,0.42323,2362.2,2362.1,0.42323]
[1726598118933,0.42323,2362.2,2361.9,1.0582]
[1726598118934,0.42325,2362.1,2362.0,0.42325]
[1726598119140,3.2078,2362.2,2362.1,0.42323]
[1726598119141,0.42323,2362.2,2362.1,0.42323]
[1726598119334,3.63103,2362.2,2362.1,0.42323]
[1726598120443,3.63103,2362.2,2361.7,2.24627]
[1726598120642,1.65319652,2361.8,2361.7,2.24627]
[1726598120843,1.65319652,2361.8,2361.7,2.66958]
[1726598121049,1.65319652,2361.8,2361.7,6.90398]
[1726598121449,1.65319652,2361.8,2361.7,7.24479685]
[1726598122451,1.65319652,2361.8,2361.7,17.60308685]
[1726598122648,1.65319652,2361.8,2361.7,20.81088685]
[1726598122848,2.20426203,2362.0,2361.9,1.48148]
[1726598123541,2.20426203,2362.0,2361.9,0.42328]
[1726598126349,3.60357754,2362.1,2362.0,0.42326]
[1726598128354,3.18032754,2362.1,2362.0,0.42326]
[1726598128547,0.84824,2362.1,2362.0,0.42326]
[1726598128848,0.425,2362.1,2362.0,0.42326]
[1726598129047,3.60356754,2362.1,2362.0,0.42326]
[1726598129254,0.425,2362.1,2362.0,0.42326]
[1726598129453,2.75532754,2362.2,2362.1,1.48135]
[1726598129653,3.2078,2362.6,2362.3,2.53925]
[1726598129654,2.200161,2362.4,2362.3,2.53925]
[1726598129850,2.200161,2362.6,2362.5,1.4811]
[1726598130049,2.200161,2362.7,2362.6,0.42315]
[1726598130255,2.615961,2362.8,2362.7,0.42313]
[1726598131053,0.4158,2362.8,2362.7,0.42313]
[1726598131254,1.05787,2362.7,2362.4,0.42318]
[1726598131458,2.19852997,2362.5,2362.1,1.4641]
[1726598131655,2.62169997,2362.5,2362.4,0.42319]
[1726598131858,2.62169997,2362.5,2362.1,0.406]
[1726598131859,2.19852997,2362.5,2362.1,0.406]
[1726598132150,2.61932997,2362.5,2362.4,0.42319]
[1726598132357,2.19852997,2362.5,2362.4,0.42319]
[1726598132549,2.61932997,2362.5,2362.3,0.42319]
[1726598132752,2.99482731,2362.4,2362.3,0.42319]
[1726598133656,2.60432731,2362.4,2362.3,0.42321]
[1726598134156,0.4064,2362.4,2362.3,0.42321]
[1726598135045,2.05491456,2362.4,2362.3,0.42321]
[1726598135247,2.05491988,2362.4,2362.3,0.42321]
[1726598136562,1.64851988,2362.4,2362.3,4.65601]
[1726598136763,1.64851988,2362.4,2362.3,5.47341]
[1726598137259,1.64849465,2362.5,2362.3,5.0502]
[1726598137454,1.64849465,2362.5,2362.4,0.42319]
[1726598137760,2.19792731,2362.6,2362.5,0.42317]
[1726598140160,2.62107731,2362.6,2362.5,0.42317]
[1726598140357,2.19701007,2362.6,2362.5,0.42317]
[1726598140563,3.17847754,2362.7,2362.4,0.42318]
[1726598140564,0.42317,2362.5,2362.4,0.42318]
[1726598140861,2.62016854,2362.5,2362.4,0.42318]
[1726598141061,2.19699854,2362.5,2362.0,1.05816]
[1726598141264,1.64796167,2362.3,2362.2,0.42322]
[1726598141769,2.07117167,2362.3,2362.2,0.42322]
[1726598142164,0.42321,2362.3,2362.2,0.42322]
[1726598143855,1.6523,2362.4,2362.3,0.42321]
[1726598144252,4.40762754,2362.4,2362.3,0.42321]
[1726598144663,1.2291,2362.4,2362.3,0.42321]
[1726598144879,3.17850754,2362.5,2362.3,4.65601]
[1726598144880,2.19957932,2362.5,2362.3,4.65601]
[1726598145073,2.19957932,2362.5,2362.4,1.48117]
[1726598145363,2.75532754,2362.5,2362.4,1.48117]
[1726598145565,2.75532754,2362.5,2362.4,16.07195]
[1726598145763,2.75532754,2362.6,2362.5,1.4811]
[1726598145963,3.16782754,2362.7,2362.6,0.42315]
[1726598146266,3.16782754,2362.7,2362.6,3.72315]
[1726598146468,3.16782754,2362.7,2362.6,7.95595]
[1726598146668,2.19976869,2362.8,2362.7,2.53881]
[1726598146857,1.64992909,2362.8,2362.7,10.49031]
[1726598147058,1.64992909,2362.8,2362.7,16.49031]
[1726598147657,1.64992909,2362.8,2362.7,15.43247]
[1726598148254,1.6496117,2362.9,2362.7,15.00934]
[1726598148460,1.6496117,2362.9,2362.8,4.65512]
[1726598148654,2.19976869,2363.0,2362.9,0.4231]
[1726598148865,2.75532754,2363.1,2363.0,0.42308]
[1726598149067,2.75532754,2363.1,2362.8,0.4222]
[1726598149266,2.75532754,2363.0,2362.8,0.42312]
[1726598149571,2.75532754,2362.9,2362.8,0.42312]
[1726598149867,2.75532754,2362.9,2362.6,3.2078]
[1726598149868,3.59832754,2362.9,2362.6,3.2078]
[1726598150066,2.19925533,2362.7,2362.6,3.2078]
[1726598150365,3.56722754,2362.8,2362.2,3.3]
[1726598150366,1.23502,2362.8,2362.2,3.3]
[1726598150673,1.64940735,2362.4,2362.2,0.42321]
[1726598150962,2.05070735,2362.3,2362.2,0.42321]
[1726598151157,0.4013,2362.3,2362.2,0.42321]
[1726598151360,2.05052812,2362.3,2362.2,0.42321]
[1726598152263,2.6005098,2362.3,2362.2,0.42321]
[1726598152462,2.9964098,2362.3,2362.2,0.42321]
[1726598152760,0.7972,2362.3,2362.1,0.42323]
[1726598152966,2.19832695,2362.2,2362.1,0.42323]
[1726598153162,3.84719712,2362.2,2362.1,0.42323]
[1726598153471,0.7972,2362.3,2362.1,0.42323]
[1726598153472,2.05017017,2362.3,2362.2,0.42322]
[1726598153768,2.05024704,2362.3,2362.2,0.42322]
[1726598154461,2.05024704,2362.3,2362.2,4.65682]
[1726598155174,2.05024704,2362.3,2362.2,0.42322]
[1726598156172,2.04958864,2362.3,2362.2,0.42322]
[1726598156973,2.59962695,2362.3,2362.2,0.42322]
[1726598159164,2.60055211,2362.3,2362.2,0.42322]
[1726598159471,0.4013,2362.3,2362.2,0.42322]
[1726598159873,2.60106667,2362.3,2362.2,0.42322]
[1726598160072,0.4013,2362.3,2362.2,0.42322]
[1726598160265,3.15033169,2362.3,2362.2,0.42322]
[1726598160667,0.4013,2362.3,2362.2,0.42322]
[1726598160865,3.15033169,2362.3,2362.2,0.42322]
[1726598161875,0.4013,2362.3,2362.2,0.42322]
[1726598162273,3.15033169,2362.3,2362.2,0.42322]
[1726598162871,0.4013,2362.3,2362.2,0.42322]
[1726598163268,0.4013,2362.3,2362.2,1.48129]
[1726598163480,2.20016467,2362.3,2362.2,1.48129]
[1726598163869,2.20016467,2362.3,2362.2,0.42322]
[1726598164086,3.59212169,2362.4,2362.3,0.42321]
[1726598164675,3.16893169,2362.4,2362.3,0.42321]
[1726598165081,3.59212169,2362.4,2362.3,0.42321]
[1726598165979,3.17088918,2362.4,2362.3,0.42321]
[1726598166180,0.84309,2362.4,2362.3,0.42321]
[1726598166674,3.59378893,2362.4,2362.3,0.42321]
[1726598166871,3.59378893,2362.4,2362.1,4.35811]
[1726598166872,0.42321,2362.3,2362.0,1.05815]
[1726598167180,2.20054358,2362.2,2362.1,0.42324]
[1726598167381,0.42323,2362.2,2361.9,0.3968]
[1726598167684,2.19994502,2362.0,2361.9,0.3968]
[1726598167981,8.49956,2362.0,2361.6,3.2078]
[1726598168183,2.62285737,2361.7,2361.6,0.42333]
[1726598168379,2.74943422,2361.7,2361.6,0.42333]
[1726598168584,0.4298,2361.7,2361.6,0.42333]
[1726598168885,0.4298,2361.7,2361.6,1.48166]
[1726598168886,2.62903,2361.7,2361.6,1.48166]
[1726598169582,2.62903,2361.7,2361.6,0.42333]
[1726598170481,2.62903,2361.7,2361.6,1.48166]
[1726598170678,2.19923,2361.8,2361.7,0.42331]
[1726598171081,2.19923,2361.8,2361.7,9.4147]
[1726598171477,1.64871431,2361.9,2361.8,2.5398]
[1726598171674,1.64871431,2362.0,2361.9,2.53968]
[1726598171876,1.64871431,2362.0,2361.9,13.84316629]
[1726598172282,1.64871431,2362.0,2361.9,12.78496629]
[1726598172485,2.19923,2362.1,2362.0,0.42326]
[1726598172689,0.42322,2362.2,2362.1,0.42324]
[1726598172983,0.42322,2362.2,2361.8,1.27173856]
[1726598172984,0.42322,2362.3,2361.8,1.27173856]
[1726598173185,4.13237744,2362.4,2362.1,0.42323]
[1726598173482,0.42321,2362.3,2362.2,0.42322]
[1726598173684,4.55557744,2362.4,2362.3,0.42321]
[1726598174086,4.55557744,2362.4,2362.2,0.42321]
[1726598174691,0.42321,2362.3,2362.2,0.42321]
[1726598174881,4.55557744,2362.4,2362.2,0.42321]
[1726598175081,1.2393,2362.4,2362.0,3.3]
[1726598175285,2.74855208,2362.2,2362.0,3.3]
[1726598175493,2.74855208,2362.2,2362.1,0.42324]
[1726598176382,2.74855208,2362.3,2362.2,0.42322]
[1726598177085,0.8161,2362.4,2362.3,0.42321]
[1726598178401,1.23929,2362.4,2362.3,0.42321]
[1726598178595,0.8161,2362.4,2362.3,0.42321]
[1726598180289,3.31627744,2362.6,2362.3,11.79862]
[1726598180489,0.42316,2362.6,2362.3,0.42321]
[1726598180694,2.75042856,2362.4,2362.3,0.42321]
[1726598183400,3.31627744,2362.5,2362.4,0.42319]
[1726598184399,5.13129613,2362.7,2362.6,0.42315]
[1726598184400,3.31627744,2362.7,2362.6,0.42315]
[1726598184602,3.2078,2362.9,2362.8,0.42312]
[1726598184899,3.2078,2362.9,2362.8,7.95512]
[1726598185594,3.2078,2362.9,2362.5,2.29713]
[1726598185595,7.4398,2362.9,2362.5,0.42316]
[1726598185904,3.72303987,2362.7,2362.5,0.42316]
[1726598186592,3.29989987,2362.7,2362.5,0.42316]
[1726598186794,0.3945,2362.6,2362.5,0.42316]
[1726598188392,3.69439987,2362.6,2362.5,0.42316]
[1726598188596,0.3945,2362.6,2362.5,0.42316]
[1726598188990,3.69439987,2362.6,2362.5,0.42316]
[1726598189191,0.3945,2362.6,2362.5,3.72316]
[1726598190604,3.14581924,2362.6,2362.5,3.72316]
[1726598193602,3.14581924,2362.6,2362.5,4.78109]
[1726598193901,2.75131924,2362.7,2362.6,0.42315]
[1726598194295,2.75131924,2362.7,2362.5,4.093]
[1726598194296,1.1907,2362.8,2362.7,0.42313]
[1726598195305,1.1907,2362.8,2362.7,3.72313]
[1726598195306,0.3893,2362.8,2362.7,3.72313]
[1726598195802,3.14231879,2362.8,2362.7,3.72313]
[1726598196107,0.3893,2362.8,2362.7,3.72313]
[1726598197105,0.3893,2362.8,2362.7,0.42313]
[1726598198714,0.81242,2362.8,2362.4,1.05797]
[1726598199009,2.75232796,2362.6,2362.5,0.42317]
[1726598199508,3.17312796,2362.6,2362.5,0.42317]
[1726598200503,0.42318,2362.5,2362.2,3.2078]
[1726598200704,3.15120006,2362.4,2362.3,0.4232]
[1726598201303,0.4001,2362.4,2362.2,3.63101]
[1726598201503,3.15777436,2362.3,2362.2,3.63101]
[1726598202007,3.15777436,2362.3,2361.8,0.21349856]
[1726598202008,3.6146,2362.3,2361.8,0.54266273]
[1726598202212,2.75069029,2362.1,2362.0,0.42325]
[1726598204010,0.4082,2362.2,2362.1,0.42324]
[1726598204011,3.15889029,2362.2,2362.1,0.42324]
[1726598204217,3.1584697,2362.2,2362.1,0.42324]
[1726598204512,3.15828774,2362.2,2362.1,0.42324]
[1726598204708,2.75008774,2362.2,2362.1,0.42324]
[1726598205312,2.75008774,2362.3,2362.2,0.42322]
[1726598205607,3.15044938,2362.4,2362.3,0.42321]
[1726598205810,0.4001,2362.4,2362.3,0.42321]
[1726598206002,0.4001,2362.4,2362.3,0.84431]
[1726598206202,2.75035068,2362.4,2362.3,0.84431]
[1726598206407,2.75035068,2362.5,2362.4,0.42319]
[1726598206613,2.75035068,2362.6,2362.5,0.42317]
[1726598206811,2.75052559,2362.6,2362.5,0.42317]
[1726598208419,2.75052559,2362.7,2362.6,0.42315]
[1726598208917,0.42312,2362.8,2362.6,0.42314]
[1726598209309,6.90969987,2362.9,2362.7,0.42313]
[1726598209514,7.33280987,2362.9,2362.7,0.42313]
[1726598209715,0.42312,2362.8,2362.6,0.42314]
[1726598210013,0.4183,2362.7,2362.6,0.42314]
[1726598210215,0.8251,2362.7,2362.6,0.42314]
[1726598212216,3.57727459,2362.7,2362.6,0.42314]
[1726598212421,2.75217887,2362.7,2362.6,3.3]
[1726598212724,2.75217887,2362.7,2362.6,3.72315]
[1726598213925,2.75217887,2362.7,2362.6,0.42315]
[1726598216123,7.33279987,2362.9,2362.8,0.42312]
[1726598216124,6.90969987,2362.9,2362.8,0.42312]
[1726598216323,3.29989987,2363.0,2362.9,0.4231]
[1726598216523,0.4207,2363.1,2363.0,0.42308]
[1726598216713,0.4207,2363.1,2363.0,4.13628]
[1726598216917,3.70699987,2363.2,2363.1,0.42306]
[1726598216918,0.4071,2363.2,2363.1,0.42306]
[1726598218524,3.16129826,2363.2,2363.1,0.42306]
[1726598218728,0.4071,2363.2,2363.1,0.42306]
[1726598219416,3.16093585,2363.2,2363.1,0.42306]
[1726598219722,0.4071,2363.2,2363.1,0.42306]
[1726598220723,3.70699987,2363.2,2363.1,0.42306]
[1726598221027,0.42307,2363.1,2362.9,0.42309]
[1726598221228,4.1354869,2363.1,2362.9,0.42309]
[1726598221915,3.7124169,2363.1,2363.0,0.42308]
[1726598222424,0.4074,2363.1,2363.0,0.42308]
[1726598222626,3.7121169,2363.2,2363.1,0.42306]
[1726598223127,4.1351569,2363.2,2363.0,0.42307]
[1726598223425,4.1351569,2363.2,2363.1,0.42306]
[1726598223426,6.91902338,2363.2,2363.1,0.42306]
[1726598223631,3.71122338,2363.2,2363.1,0.42306]
[1726598223922,3.30412338,2363.2,2363.1,4.65506]
[1726598224127,2.75361359,2363.3,2363.1,12.55423596]
[1726598224336,2.75361359,2363.3,2363.2,12.21966]
[1726598224532,2.75361359,2363.4,2363.3,1.4806]
[1726598225924,2.75361359,2363.5,2363.4,1.48054]
[1726598226229,4.28495613,2363.9,2363.5,1.05748]
[1726598226230,2.75361359,2363.7,2363.5,1.05748]
[1726598226429,2.20154653,2363.6,2363.5,1.46908]
[1726598226630,2.20154653,2363.6,2363.5,6.15735]
[1726598226824,1.65124775,2363.7,2363.6,2.53785]
[1726598227023,1.65124775,2363.7,2363.6,16.06825]
[1726598227223,1.65124775,2363.8,2363.7,2.53773]
[1726598227424,1.65124775,2363.8,2363.7,10.45743]
[1726598227626,1.65124775,2364.0,2363.9,0.42292]
[1726598227831,1.65124775,2364.1,2364.0,1.48016]
[1726598228128,5.96141359,2364.3,2364.2,0.42287]
[1726598228129,1.4729411,2364.3,2364.2,0.42287]
[1726598228634,0.42,2364.5,2364.4,0.42283]
[1726598228934,0.42,2364.5,2364.4,3.72283]
[1726598229626,0.42,2364.5,2364.4,7.95243]
[1726598229833,5.80624653,2364.8,2364.4,7.5296]
[1726598230025,5.80624653,2364.8,2364.6,0.42279]
[1726598230228,0.4101,2364.7,2364.6,0.42279]
[1726598231428,0.4101,2364.7,2364.5,0.4228]
[1726598231625,0.4101,2364.7,2364.4,0.42282]
[1726598231829,0.4101,2364.7,2364.2,6.5078]
[1726598232028,0.4101,2364.7,2364.5,0.42281]
[1726598232226,0.4101,2364.7,2364.0,4.97245551]
[1726598232534,0.4101,2364.7,2363.7,1.67245551]
[1726598232535,6.5078,2364.2,2363.7,1.67245551]
[1726598232725,1.2399,2364.1,2363.9,0.42291]
[1726598233134,1.2399,2364.1,2364.0,0.4229]
[1726598235531,1.2399,2364.1,2363.9,0.42291]
[1726598235835,1.66279,2364.1,2363.8,0.42293]
[1726598236035,1.2399,2364.1,2363.6,6.5078]
[1726598236638,1.2399,2364.1,2363.8,0.42292]
[1726598236941,1.2399,2364.1,2364.0,0.4229]
[1726598237440,1.2399,2364.1,2363.9,0.42291]
[1726598238140,1.2399,2364.1,2364.0,0.4229]
[1726598238735,1.2399,2364.1,2363.9,0.42291]
[1726598239133,1.2399,2364.1,2364.0,0.4229]
[1726598239441,1.2399,2364.1,2363.6,7.56523]
[1726598239627,1.2399,2364.1,2364.0,0.4229]
[1726598240931,1.2399,2364.1,2363.6,7.56523]
[1726598241137,1.2399,2364.1,2363.6,6.5078]
[1726598241338,1.2399,2364.1,2364.0,0.4229]
[1726598241339,1.66279,2364.1,2364.0,0.4229]
[1726598241732,5.89319,2364.1,2364.0,0.4229]
[1726598242436,1.66279,2364.1,2364.0,0.4229]
[1726598243950,1.2399,2364.1,2364.0,0.4229]
[1726598244834,1.2399,2364.1,2363.6,6.5078]
[1726598245040,1.2399,2364.1,2363.6,7.56523]
[1726598245244,1.6628,2364.1,2364.0,0.4229]
[1726598245642,5.8932,2364.1,2364.0,0.4229]
[1726598246228,1.6628,2364.1,2364.0,0.4229]
[1726598249240,0.42294,2363.9,2363.8,0.42292]
[1726598249440,0.42291,2364.0,2363.9,0.4229]
[1726598253144,1.66279,2364.1,2364.0,0.4229]
[1726598255838,2.72001,2364.1,2364.0,0.4229]
[1726598256147,0.42292,2364.0,2363.9,0.42291]
[1726598256844,1.6628,2364.1,2364.0,0.4229]
[1726598257142,0.8144,2364.1,2364.0,0.4229]
[1726598257847,1.23728,2364.1,2364.0,0.4229]
[1726598258242,0.8144,2364.1,2364.0,1.48016]
[1726598258437,3.43026994,2364.1,2364.0,0.4229]
[1726598258642,0.42292,2364.0,2363.9,0.4229]
[1726598258842,3.43028994,2364.1,2364.0,0.4229]
[1726598259254,7.66068994,2364.1,2364.0,0.4229]
[1726598260247,0.42292,2364.0,2363.9,0.42291]
[1726598260547,2.62422474,2364.0,2363.9,0.42291]
[1726598260953,3.97852742,2364.1,2363.9,0.42291]
[1726598261243,2.74123742,2364.0,2363.9,0.42291]
[1726598261448,1.23729,2364.1,2364.0,0.4229]
[1726598261449,3.55563742,2364.1,2364.0,0.4229]
[1726598261650,0.8144,2364.1,2364.0,0.4229]
[1726598261849,5.0448,2364.1,2364.0,0.4229]
[1726598262038,7.79681081,2364.1,2364.0,0.4229]
[1726598262344,5.0448,2364.1,2364.0,0.4229]
[1726598262644,5.4677,2364.1,2363.7,0.389]
[1726598262846,1.23728,2364.1,2364.0,0.4229]
[1726598263446,5.46768,2364.1,2364.0,0.4229]
[1726598263749,5.0448,2364.1,2364.0,0.4229]
[1726598263948,0.8144,2364.1,2364.0,0.4229]
[1726598264247,5.0448,2364.1,2364.0,0.4229]
[1726598265245,5.0448,2364.1,2363.9,0.42291]
[1726598265246,0.42291,2364.0,2363.9,0.42291]
[1726598265451,6.10205,2364.1,2363.7,0.389]
[1726598265452,0.42292,2363.9,2363.8,0.42292]
[1726598265745,0.42292,2363.9,2363.8,0.42293]
[1726598265746,3.17762019,2363.9,2363.8,0.42293]
[1726598266146,2.75469019,2363.9,2363.4,4.35751]
[1726598266351,4.10388491,2364.1,2363.6,0.42297]
[1726598266352,3.17765019,2363.7,2363.6,0.42297]
[1726598266844,5.46286,2363.7,2363.6,0.42297]
[1726598267044,5.0399,2363.7,2363.6,0.42297]
[1726598267251,5.0399,2363.7,2363.3,4.26537]
[1726598267448,1.23247,2363.7,2363.6,0.42297]
[1726598267639,0.8095,2363.7,2363.3,3.2078]
[1726598267845,0.8095,2363.7,2363.2,0.4083]
[1726598267846,2.75546406,2363.4,2363.2,0.4083]
[1726598268045,3.17634425,2363.3,2363.2,0.83134]
[1726598268348,0.4211,2363.3,2363.2,0.42304]
[1726598268648,1.2051,2363.3,2363.2,0.42304]
[1726598269546,1.62813,2363.3,2363.2,0.42304]
[1726598270449,1.2051,2363.3,2363.2,0.42304]
[1726598271350,1.62813,2363.3,2363.2,0.42304]
[1726598271951,1.2051,2363.3,2363.2,0.42304]
[1726598272153,3.28948491,2363.5,2363.4,0.42301]
[1726598272353,3.28948491,2363.6,2363.5,0.42299]
[1726598272548,3.2078,2363.8,2363.7,0.42295]
[1726598273645,3.63074,2363.8,2363.7,0.42295]
[1726598274051,6.92022491,2363.8,2363.7,0.42295]
[1726598274448,6.49728491,2363.8,2363.7,0.42295]
[1726598274656,3.2078,2363.8,2363.7,0.42295]
[1726598275256,0.42296,2363.7,2363.6,0.42296]
[1726598275552,1.25946,2363.7,2363.6,0.42296]
[1726598275757,5.48986,2363.7,2363.6,0.42296]
[1726598276453,1.25946,2363.7,2363.6,0.42296]
[1726598276855,5.48986,2363.7,2363.6,0.42296]
[1726598277555,8.77934491,2363.7,2363.6,0.42296]
[1726598277951,3.28948491,2363.7,2363.6,0.42296]
[1726598278154,3.63075,2363.8,2363.7,0.42295]
[1726598278454,0.42297,2363.7,2363.6,0.42296]
[1726598278652,3.73087506,2363.7,2363.6,0.42296]
[1726598279855,3.73087506,2363.7,2363.6,0.42297]
[1726598280653,3.30790506,2363.7,2363.5,0.3877]
[1726598280855,3.73087506,2363.7,2363.6,0.42297]
[1726598283765,3.30790506,2363.8,2363.7,0.42295]
[1726598283960,0.4041,2363.9,2363.8,0.42294]
[1726598284156,0.4229,2364.0,2363.9,0.42292]
[1726598284358,4.14349506,2364.1,2363.7,1.48119]
[1726598284657,2.75582415,2363.8,2363.7,1.90414]
[1726598284960,2.75582415,2363.8,2363.7,0.84675]
[1726598285150,2.75582415,2363.8,2363.7,5.07715]
[1726598285762,2.75582415,2363.8,2363.7,7.19193]
[1726598285966,1.63759605,2363.9,2363.8,2.53764]
[1726598286262,6.91540506,2364.4,2364.3,0.42285]
[1726598286263,0.3997,2364.4,2364.3,0.42285]
[1726598288659,0.3997,2364.4,2364.2,3.72285]
[1726598288966,0.42285,2364.3,2364.1,0.42287]
[1726598289160,3.70760506,2364.4,2364.1,0.42287]
[1726598289364,0.42285,2364.3,2364.1,0.42287]
[1726598289762,4.13044506,2364.4,2364.2,0.42286]
[1726598290065,3.70760506,2364.4,2363.9,3.3]
[1726598290260,0.42285,2364.3,2363.9,3.3]
[1726598290463,0.42285,2364.3,2364.1,0.42287]
[1726598290665,4.13043506,2364.4,2364.2,0.42285]
[1726598290865,0.42285,2364.3,2364.1,0.42287]
[1726598291067,4.13043506,2364.4,2363.9,4.35729]
[1726598291359,4.13044506,2364.4,2364.2,0.42286]
[1726598293259,0.42285,2364.3,2364.1,0.42287]
[1726598293460,0.83275,2364.3,2364.1,0.42287]
[1726598294559,0.83275,2364.3,2364.2,0.42287]
[1726598295664,0.4099,2364.3,2364.1,0.42287]
[1726598295862,4.77493506,2364.3,2363.7,8.18025551]
[1726598296065,3.30790506,2364.1,2363.7,3.2078]
[1726598296264,0.42293,2363.9,2363.8,0.42292]
[1726598296465,6.93863506,2363.9,2363.8,0.42293]
[1726598296764,0.42296,2363.7,2363.6,0.42296]
[1726598297164,3.30790506,2363.7,2363.2,1.0789309]
[1726598297359,0.42301,2363.4,2363.3,0.42301]
[1726598297557,4.66285,2363.6,2363.2,0.6611309]
[1726598297558,3.73090506,2363.5,2363.4,0.423]
[1726598298767,3.30790506,2363.5,2363.4,0.423]
[1726598299767,3.73089506,2363.5,2363.4,0.423]
[1726598300863,0.42301,2363.4,2363.3,0.42301]
[1726598301473,0.4244,2363.4,2363.3,0.42301]
[1726598301765,0.84741,2363.4,2363.3,0.42301]
[1726598303365,5.71314,2363.4,2362.8,3.6256]
[1726598303566,0.84742,2363.4,2362.9,4.35775]
[1726598303767,0.84742,2363.4,2363.3,0.42303]
[1726598304474,0.42303,2363.3,2363.2,0.42303]
[1726598305169,0.42305,2363.2,2363.1,0.42305]
[1726598305468,0.42304,2363.2,2363.1,0.42305]
[1726598305773,0.42304,2363.3,2363.2,0.42304]
[1726598305975,3.63084,2363.3,2363.2,0.42304]
[1726598306275,3.6322,2363.4,2363.3,0.42303]
[1726598306569,4.05521,2363.4,2363.3,0.42303]
[1726598306776,3.6322,2363.4,2363.3,0.42303]
[1726598307473,4.05521,2363.4,2363.3,0.42303]
[1726598307782,3.6322,2363.4,2363.3,0.42303]
[1726598308272,4.05521,2363.4,2363.3,0.42303]
[1726598308672,4.05521,2363.4,2362.8,3.2078]
[1726598308673,1.05757,2363.3,2362.8,3.2078]
[1726598309177,0.42305,2363.2,2363.1,0.42306]
[1726598309790,5.28962,2363.2,2362.6,1.05788]
[1726598309986,0.42308,2363.1,2363.0,0.42307]
[1726598310289,1.05771,2363.0,2362.5,6.44178551]
[1726598310486,0.3911,2362.9,2362.8,0.42311]
[1726598310687,0.8142,2362.9,2362.8,0.42311]
[1726598310986,0.3911,2362.9,2362.8,0.42311]
[1726598311189,0.42305,2363.2,2363.1,0.42305]
[1726598311383,0.81415,2363.2,2363.1,0.42305]
[1726598312093,0.42308,2363.1,2363.0,0.42306]
[1726598312286,3.63088,2363.1,2363.0,0.42306]
[1726598313696,6.37842577,2363.1,2363.0,0.42306]
[1726598314592,5.95534577,2363.1,2363.0,0.42306]
[1726598316191,3.2078,2363.1,2363.0,0.42306]
[1726598316888,5.40580262,2363.1,2363.0,0.42306]
[1726598317486,2.19800262,2363.1,2363.0,1.48077]
[1726598317993,2.58910262,2363.2,2363.1,0.42306]
[1726598318194,0.3911,2363.2,2363.1,0.42306]